[Event "FIDE WSTC Open 50 2025"]
[Site "Prague"]
[Date "2025.02.19"]
[Round "3.6"]
[White "Petursson, Margeir"]
[Black "Ning, Chunhong"]
[Result "1/2-1/2"]
[Annotator "TA"]
[ECO "D30"]
[WhiteElo "2403"]
[BlackElo "2257"]
[PlyCount "146"]
[EventDate "2025.02.17"]
[EventType "team-tourn"]
[EventCountry "CZE"]
[SourceTitle "playchess.com"]
[Source "ChessBase"]
[SourceQuality "1"]
[TimeControl "40/5400+30:1800+30"]

{[%evp 17,146,7,66,65,112,111,159,161,181,182,198,186,184,166,233,242,238,237,262,261,253,125,268,123,122,105,116,112,97,111,112,115,98,104,96,109,105,105,102,96,154,158,145,154,150,141,134,135,150,154,154,160,175,176,180,209,229,190,256,33,33,33,46,35,41,8,8,8,13,13,13,13,13,13,13,0,13,13,13,0,0,0,3,14,15,15,15,0,0,0,0,0,0,0,0,0,0,0,0,0,0,0,0,0,0,0,0,0,0,0,0,0,0,0,0,0,0,0,0,0,0,0,0,0,0,0,0,0,0,0,34]} 1. d4 {[%emt 0:00:04]} d5 {[%emt 0:00:31]} 2. c4 {[%emt 0:00:10]} e6 {[%emt 0:00:15]} 3. Nf3 {[%emt 0:00:51]} Nf6 {[%emt 0:00:11]} 4. g3 {[%emt 0:00:06]} Bb4+ {[%emt 0:07:33]} 5. Bd2 {[%emt 0:02:05]} Be7 {[%emt 0:02:01]} 6. Bg2 {[%emt 0:00:21]} O-O {[%emt 0:00:08]} 7. O-O {[%emt 0:00:23]} dxc4 {[%emt 0:02:29]} 8. Qc2 {[%emt 0:01:13]} a6 {[%emt 0:05:50]} 9. a4 {[%emt 0:20:55]} Nbd7 {[%emt 0:11:40]} (9... b6 $11) 10. Na3 $14 {[%emt 0:03:16] White sacrificed a pawn E11: Bogo-Indian.} c5 {[%emt 0:16:51]} (10... b6 $14) 11. Nxc4 $16 {[%emt 0:05:26]} cxd4 {[%emt 0:10:36]} (11... Qc7 $142) 12. Ba5 {[%emt 0:10:40] White is clearly better. White is much more active. The black rooks are passive.} (12. Nxd4 Ne5 $16) 12... Qe8 {[%emt 0:16:45][%cal Ob7b6]} 13. Nxd4 {[%emt 0:04:58]} Nd5 {[%emt 0:00:47]} 14. e4 {[%emt 0:07:07]} Nb4 {[%emt 0:03:55]} 15. Qc3 $146 {[%emt 0:04:15]} ({Predecessor:} 15. Qd2 Nc6 16. Nxc6 bxc6 17. e5 Nc5 18. Nd6 Qd7 19. Qc3 Qa7 20. Bb4 Bxd6 21. exd6 {1-0 Ftacnik,L (2430)-Horvath,G (2280) Zalaegerszeg 1979 (7)}) 15... Nc6 {[%emt 0:03:04]} (15... e5) 16. Nxc6 $18 {[%emt 0:00:12]} bxc6 {[%emt 0:00:02]} 17. e5 {[%emt 0:02:13]} Bb7 {[%emt 0:05:11]} 18. Bc7 {[%emt 0:04:56]} f6 {[%emt 0:04:59]} 19. Na5 {[%emt 0:05:07]} (19. Qb3 $18 {and White stays clearly on top.} Rb8 20. Bxb8 Qxb8 21. Na5) 19... Qc8 {[%emt 0:01:33] [#]} (19... Rc8 $16) 20. Nxc6 {[%emt 0:04:58]} (20. Bxc6 Qxc7 21. Bxb7 Qxc3 22. bxc3 Ra7 $16) (20. Bd6 $1 $18 {[%cal Rd6e7] is the precise move to win.} Bxd6 21. exd6) 20... Bc5 $16 {[%emt 0:01:07] [#] Black is weak on the dark squares} 21. Qxc5 $1 {[%emt 0:05:37][%mdl 512]} Nxc5 {[%emt 0:00:18]} 22. Ne7+ {[%emt 0:00:06]} Kf7 {[%emt 0:01:44]} 23. Nxc8 {[%emt 0:00:07]} Raxc8 {[%emt 0:00:11]} 24. Bd6 {[%emt 0:02:22]} Bxg2 {[%emt 0:00:27]} 25. Kxg2 {[%emt 0:00:41]} Rfd8 {[%emt 0:00:14]} 26. Bxc5 {[%emt 0:03:59]} Rxc5 {[%emt 0:00:05]} 27. exf6 {[%emt 0:00:08]} Kxf6 {[%emt 0:00:46]} 28. Rac1 {[%emt 0:03:07]} Rxc1 {[%emt 0:02:07]} (28... Ra5 $142) 29. Rxc1 {[%emt 0:00:34][%mdl 4096] Endgame KR-KR. White is a pawn up.} Rb8 {[%emt 0:00:07]} 30. Rc6 {[%emt 0:02:32]} a5 {[%emt 0:00:07]} 31. Rc5 {[%emt 0:00:26]} Rxb2 {[%emt 0:00:04]} 32. Rxa5 {[%emt 0:00:05]} Ra2 {[%emt 0:00:22]} 33. h4 {[%emt 0:01:25]} h5 {[%emt 0:00:39]} 34. Kf3 {[%emt 0:00:33][%cal Oa5a8]} ({Don't take} 34. Rxh5 Rxa4 35. Rh8 Kf7 $16) 34... Ra3+ {[%emt 0:01:35]} 35. Ke4 {[%emt 0:01:15]} Ra2 {[%emt 0:00:18]} 36. Ra8 {[%emt 0:01:03]} (36. Rxh5 Rxa4+ 37. Kf3 g6 $14) 36... Kg6 {[%emt 0:00:46]} 37. Ke3 {[%emt 0:02:43]} Kf6 {[%emt 0:01:52]} (37... e5 {is a better defense.} 38. Kf3 Kf5) 38. Rf8+ $2 {[%emt 0:00:32]} (38. a5 $18) 38... Kg6 $1 $14 {[%emt 0:00:08]} 39. Rf4 {[%emt 0:00:28]} e5 {[%emt 0:00:10]} 40. Rb4 {[%emt 0:01:26]} Kf5 {[%emt 0:00:11]} 41. Rb7 {[%emt 0:31:57]} Ra3+ {[%emt 0:30:12] The position is equal.} 42. Ke2 {[%emt 0:00:35]} Ra2+ {[%emt 0:00:07]} 43. Kf1 {[%emt 0:00:00]} g5 {[%emt 0:00:00]} 44. Rb4 {[%emt 0:00:00]} gxh4 {[%emt 0:00:00]} 45. Rxh4 {[%emt 0:00:00]} Kg5 {[%emt 0:00:00]} 46. Kg2 {[%emt 0:00:00]} Ra3 {[%emt 0:00:00]} 47. Rb4 {[%emt 0:00:00]} Kf5 {[%emt 0:00:00]} 48. Rc4 {[%emt 0:00:00]} Ra2 {[%emt 0:00:00]} 49. Rb4 {[%emt 0:00:00]} Ra3 {[%emt 0:00:00]} 50. Kh3 {[%emt 0:00:00]} Ra2 {[%emt 0:00:00]} 51. f3 {[%emt 0:00:00]} Ra3 {[%emt 0:00:00]} 52. f4 {[%emt 0:00:00]} exf4 {[%emt 0:00:00]} 53. Rxf4+ {[%emt 0:00:00]} Kg5 {[%emt 0:00:00]} 54. Rb4 {[%emt 0:00:00]} Ra2 {[%emt 0:00:00]} 55. Rb5+ {[%emt 0:00:00]} Kg6 {[%emt 0:00:00]} 56. a5 {[%emt 0:00:00]} Ra4 {[%emt 0:04:05]} 57. Rb6+ {[%emt 0:00:00]} Kg5 {[%emt 0:00:12]} 58. Ra6 {[%emt 0:00:00]} Kf5 {[%emt 0:00:43]} 59. Ra8 {[%emt 0:00:00]} Kg6 {[%emt 0:00:24]} 60. a6 {[%emt 0:00:00]} Kg7 {[%emt 0:00:26]} 61. Kg2 {[%emt 0:00:00]} Ra3 {[%emt 0:00:10]} 62. Kf2 {[%emt 0:00:00]} Kh7 {[%emt 0:00:55]} 63. a7 {[%emt 0:00:00]} Kg7 {[%emt 0:00:15]} 64. Ke2 {[%emt 0:00:00]} Kh7 {[%emt 0:00:12]} 65. Kd2 {[%emt 0:00:00]} Kg7 {[%emt 0:00:05]} 66. Kc2 {[%emt 0:00:00]} Kh7 {[%emt 0:00:06]} 67. Kb2 {[%emt 0:00:00]} Ra5 {[%emt 0:00:32]} 68. Kc3 {[%emt 0:00:04]} Kg7 {[%emt 0:00:09]} 69. Kb4 $1 {[%emt 0:00:06]} Ra1 {[%emt 0:00:08]} 70. Kc5 {[%emt 0:00:15]} Rc1+ {[%emt 0:00:21]} 71. Kd6 {[%emt 0:00:18]} Rd1+ {[%emt 0:00:16]} 72. Ke6 {[%emt 0:00:27][%cal Oa8g8] Threatening mate with Rg8+!.} Ra1 {[%emt 0:00:23]} 73. Ke5 {[%emt 0:00:24]} Ra5+ {[%emt 0:00:13] White really could win this.   Weighted Error Value: White=0.21 (precise) /Black=0.15 (very precise)   Missed win:     	White=1     	---        Mistake:       	White=2     	Black=6      Inaccurate:     	White=1     	---        OK:         	White=21    	Black=29     Best:        	White=4     	Black=3      Strong:       	White=1     	Black=1} 1/2-1/2

[Event "FIDE WSTC Open 50 2025"]
[Site "Prague"]
[Date "2025.02.19"]
[Round "3.7"]
[White "Guo, Yun"]
[Black "Thorhallsson, Throstur"]
[Result "0-1"]
[Annotator "TA"]
[ECO "B28"]
[WhiteElo "2213"]
[BlackElo "2394"]
[PlyCount "76"]
[EventDate "2025.02.17"]
[EventType "team-tourn"]
[EventCountry "CZE"]
[SourceTitle "playchess.com"]
[Source "ChessBase"]
[SourceQuality "1"]
[TimeControl "40/5400+30:1800+30"]

{[%evp 9,76,35,43,19,46,4,10,6,18,22,22,-10,-8,-19,-20,-89,-80,-169,-146,-228,-221,-265,-264,-283,-280,-254,-252,-264,-274,-282,-279,-300,-298,-310,-302,-314,-297,-310,-298,-312,-319,-356,-354,-406,-395,-409,-387,-407,-381,-410,-405,-403,-417,-474,-477,-466,-455,-1019,-1036,-1030,-1016,-988,-972,-944,-937,-2337,-2334,-1191,-1138]} 1. e4 {[%emt 0:00:06]} c5 {[%emt 0:00:17]} 2. Nf3 {[%emt 0:00:06]} a6 {[%emt 0:00:21]} 3. Nc3 {[%emt 0:01:28]} b5 {[%emt 0:01:40]} 4. d4 {[%emt 0:04:48]} cxd4 {[%emt 0:00:10]} 5. Nxd4 {[%emt 0:00:06]} Bb7 {[%emt 0:00:22]} 6. a3 {[%emt 0:07:28] B28: Sicilian: 2 Nf3 a6 (O'Kelly Variation).} d6 {[%emt 0:05:55] was the old line (6...e6).} 7. Bd3 {[%emt 0:04:06]} Nf6 {[%emt 0:02:09]} 8. O-O {[%emt 0:00:17] The position is equal.} g6 {[%emt 0:04:32]} 9. Re1 {[%emt 0:01:52]} Bg7 {[%emt 0:00:34]} 10. Bf1 $146 {[%emt 0:00:44]} ({Predecessor:} 10. Bg5 O-O 11. Qd2 Re8 12. Rad1 Nbd7 13. Bh6 Bh8 14. Bf1 Rc8 15. h3 Nb6 16. f4 {½-½ Wagner,D (2572)-Obolentseva,A (2302) Titled Tuesday intern op 13th July blitz 2021 (5)}) 10... O-O {[%emt 0:00:55]} 11. Nb3 {[%emt 0:06:19]} Nbd7 {[%emt 0:01:21]} 12. f4 {[%emt 0:04:29]} (12. f3 $11) 12... Rc8 $17 {[%emt 0:07:10][%cal Oc8c3] White is on the road to losing.} 13. g3 {[%emt 0:03:25]} (13. Qf3 $17 {was called for.}) 13... h5 $19 {[%emt 0:08:02]} 14. Bg2 {[%emt 0:22:52] [#]} (14. Bd3 $17) 14... Ng4 $1 {[%emt 0:03:27]} 15. Qe2 {[%emt 0:00:48]} Qb6+ {[%emt 0:04:56]} 16. Be3 {[%emt 0:00:09]} Nxe3 {[%emt 0:00:19]} 17. Qxe3 {[%emt 0:00:01]} Bxc3 {[%emt 0:01:36]} 18. bxc3 {[%emt 0:00:42]} Rxc3 {[%emt 0:00:19]} 19. Qxb6 {[%emt 0:01:52]} Nxb6 {[%emt 0:00:04]} 20. Ra2 {[%emt 0:00:30]} Rfc8 {[%emt 0:00:44]} 21. Re2 {[%emt 0:00:07]} Nc4 {[%emt 0:03:19]} 22. Kf2 {[%emt 0:01:24]} e5 {[%emt 0:04:12]} 23. a4 {[%emt 0:04:58]} b4 {[%emt 0:01:03]} 24. a5 {[%emt 0:00:06]} Bc6 {[%emt 0:06:14] Wards off Ra4} 25. Bf1 {[%emt 0:13:26]} Bb5 {[%emt 0:04:12]} 26. Na1 {[%emt 0:01:15] [#]} h4 $1 {[%emt 0:04:12][%mdl 512]} 27. Re1 {[%emt 0:00:48]} hxg3+ {[%emt 0:01:35]} 28. hxg3 {[%emt 0:00:04]} Kg7 {[%emt 0:02:29]} 29. Bxc4 {[%emt 0:00:21]} R8xc4 {[%emt 0:02:24]} (29... Bxc4 30. Rb2 $19) 30. Rb2 {[%emt 0:04:27]} Bc6 {[%emt 0:00:43]} 31. fxe5 {[%emt 0:01:11]} dxe5 {[%emt 0:00:18] Black is clearly winning.} ({Stronger than} 31... Rxe4 32. Rxe4 Bxe4 33. exd6 $11) 32. Reb1 {[%emt 0:00:09]} Rxe4 {[%emt 0:03:00] Strongly threatening ...Rce3.} ({Don't play} 32... Ra3 33. Nb3 $19) 33. Rxb4 {[%emt 0:00:51] [#]} (33. Rb3 $142) 33... Rf3+ $3 {[%emt 0:01:22][%mdl 512]} 34. Kg1 {[%emt 0:00:50]} Rxg3+ {[%emt 0:00:12]} 35. Kf1 {[%emt 0:00:59]} Rf3+ {[%emt 0:00:50]} 36. Kg1 {[%emt 0:00:01]} Re2 {[%emt 0:02:33] ( -> ...Rh3)} 37. Rb6 {[%emt 0:01:52]} Be4 {[%emt 0:00:46] ( -> ...Rf5)} 38. R6b4 {[%emt 0:05:19]} Rf4 {[%emt 0:00:19] Weighted Error Value: White=0.46/Black=0.01 (flawless)   Mistake:       	White=4     	---        Inaccurate:     	White=2     	Black=1      OK:         	White=5     	Black=19     Best:        	White=1     	---        Strong:       	---       	Black=1      Brilliant:      	---       	Black=1} 0-1

[Event "FIDE WSTC Open 50 2025"]
[Site "Prague"]
[Date "2025.02.19"]
[Round "3.11"]
[White "Berube, Richard"]
[Black "Bellini, Fabio"]
[Result "0-1"]
[Annotator "TA"]
[ECO "B12"]
[WhiteElo "2121"]
[BlackElo "2408"]
[PlyCount "76"]
[EventDate "2025.02.17"]
[EventType "team-tourn"]
[EventCountry "CZE"]
[SourceTitle "playchess.com"]
[Source "ChessBase"]
[SourceQuality "1"]
[TimeControl "40/5400+30:1800+30"]

{[%evp 10,76,24,6,62,21,16,12,34,27,19,12,23,24,29,12,22,16,4,17,21,16,27,7,14,11,14,14,15,10,14,-34,-35,-119,0,0,12,-9,-5,-323,-317,-307,-290,-306,-310,-281,-276,-281,-284,-336,-333,-332,-329,-493,-433,-482,-411,-566,-533,-570,-566,-798,-789,-772,-748,-29996,-29997,-29997,-260]} 1. e4 {[%emt 0:00:10]} c6 {[%emt 0:00:10]} 2. d4 {[%emt 0:00:17]} d5 {[%emt 0:00:06]} 3. e5 {[%emt 0:00:34]} Bf5 {[%emt 0:00:11]} 4. Nf3 {[%emt 0:00:08]} e6 {[%emt 0:00:20]} 5. Be2 {[%emt 0:00:31]} Ne7 {[%emt 0:04:00]} 6. O-O {[%emt 0:00:26]} Nc8 {[%emt 0:01:02] B12: Caro-Kann: Advance Variation.} ({Black should play} 6... c5 $11) 7. Nbd2 {[%emt 0:01:41][%cal Bb1d2,Bd2b3,Bb3c1,Bc1d3,Bd3f4][%mdl 32] Recently 7.a4 got a lot of attention.} Be7 {[%emt 0:01:50]} 8. Re1 {[%emt 0:03:23]} Bg6 $146 {[%emt 0:07:16] The position is equal.} ({Predecessor:} 8... Nd7 9. c3 O-O 10. Nf1 c5 11. Bd3 Bg6 12. Bxg6 fxg6 13. Be3 h6 14. Qd3 Qe8 {0-1 Razygraev,A (1261)-Gamilova,R (1678) Chigorin Memorial 30th 2023 (2)}) 9. Nb3 {[%emt 0:03:40]} Nd7 {[%emt 0:06:50]} 10. Be3 {[%emt 0:02:12]} Qc7 {[%emt 0:02:38]} 11. a4 {[%emt 0:08:36]} O-O {[%emt 0:08:33]} 12. c3 a5 {[%emt 0:07:35]} 13. Nc1 {[%emt 0:07:59]} c5 {[%emt 0:04:06]} 14. Nd3 {[%emt 0:04:49]} Ncb6 {[%emt 0:07:11]} 15. Nf4 {[%emt 0:05:29]} Be4 {[%emt 0:10:10]} 16. Rc1 {[%emt 0:04:59]} Bxf3 {[%emt 0:02:31]} 17. Bxf3 {[%emt 0:00:23]} Nc4 {[%emt 0:00:21]} 18. b3 {[%emt 0:08:19]} Nxe3 {[%emt 0:00:30]} 19. fxe3 {[%emt 0:00:18]} Bg5 20. c4 {[%emt 0:02:48]} (20. g3 $11 {is more appropriate.}) 20... cxd4 $15 {[%emt 0:05:45]} 21. cxd5 {[%emt 0:18:54] [#]} (21. Qxd4 $15 Qxe5 (21... Nxe5 22. cxd5 Qd6 23. Be2 $15) 22. Qd2) 21... Qxe5 {[%emt 0:00:31]} (21... Qb6 $1 $17 22. Qxd4 Qxd4 (22... Qxb3 $2 23. dxe6 fxe6 24. Qxd7 $18) 23. exd4 Bxf4) 22. dxe6 $11 {[%emt 0:01:43]} fxe6 {[%emt 0:00:52][%cal Od7b6]} 23. Rc4 {[%emt 0:02:35]} Rad8 {[%emt 0:15:03]} (23... dxe3 $6 24. Nxe6 Rxf3 (24... Qxe6 $2 25. Bd5 $18) 25. Qxd7 $14) 24. Qxd4 {[%emt 0:06:11][%mdl 8192] Loses the game.} (24. Rxd4 $11 {and White stays safe.} Nc5 25. Kh1) 24... Bxf4 $19 {[%emt 0:00:25]} 25. Qxe5 {[%emt 0:02:45]} Bxe5 {[%emt 0:00:06]} 26. Bxb7 Rb8 {[%emt 0:02:57]} 27. Bc6 {[%emt 0:00:15]} Nf6 {[%emt 0:00:07]} 28. Bb5 {[%emt 0:00:09]} Rbd8 {[%emt 0:04:29]} 29. Rc5 {[%emt 0:00:36]} Rd5 {[%emt 0:01:28]} 30. Rc6 {[%emt 0:00:08]} Ng4 {[%emt 0:00:59]} 31. Bc4 {[%emt 0:01:55]} (31. g3 {was necessary.} Rd6 32. Rc2) 31... Bxh2+ {[%emt 0:01:46]} 32. Kh1 {[%emt 0:00:05]} Rg5 {[%emt 0:02:30] [#]} 33. Bxe6+ {[%emt 0:00:13]} Kh8 {[%emt 0:00:01] and ...Bg3 would now be decisive} 34. Bxg4 {[%emt 0:00:15]} Bg3 {[%emt 0:00:24][%cal Og5g4]} 35. Rec1 {[%emt 0:03:38] Threatens to win with Rc8.} Rxg4 {[%emt 0:00:21]} 36. R6c4 {[%emt 0:01:02]} Rg5 {[%emt 0:00:33] ( -> ...Rh5+)} 37. Rc8 {[%emt 0:00:57]} Rh5+ {[%emt 0:00:15]} 38. Kg1 {[%emt 0:00:01]} Bh2+ {[%emt 0:00:09] Weighted Error Value: White=0.59/Black=0.15 (very precise)   Loses game:     	White=1     	---        Mistake:       	White=3     	Black=1      Inaccurate:     	White=3     	---        OK:         	White=9     	Black=14     Best:        	White=1     	Black=5} 0-1

[Event "FIDE WSTC Open 50 2025"]
[Site "Prague"]
[Date "2025.02.19"]
[Round "3.12"]
[White "Bellia, Fabrizio"]
[Black "Chabot, Roland"]
[Result "1-0"]
[Annotator "TA"]
[ECO "B81"]
[WhiteElo "2393"]
[BlackElo "2038"]
[PlyCount "56"]
[EventDate "2025.02.17"]
[EventType "team-tourn"]
[EventCountry "CZE"]
[SourceTitle "playchess.com"]
[Source "ChessBase"]
[SourceQuality "1"]
[TimeControl "40/5400+30:1800+30"]

{[%evp 14,56,44,24,62,56,59,62,67,31,121,129,119,71,80,78,108,106,127,99,143,134,150,82,143,76,283,280,309,300,377,233,477,472,461,450,598,606,590,605,605,596,639,645,29992]} 1. e4 {[%emt 0:00:05]} c5 {[%emt 0:00:13]} 2. Nf3 {[%emt 0:00:06]} e6 {[%emt 0:00:35]} 3. d4 {[%emt 0:00:10]} cxd4 {[%emt 0:00:11]} 4. Nxd4 {[%emt 0:00:04]} Nf6 {[%emt 0:00:38]} 5. Nc3 {[%emt 0:00:14]} d6 {[%emt 0:00:32]} 6. g4 {[%emt 0:01:06]} h6 {[%emt 0:00:21]} 7. Rg1 $1 {[%emt 0:00:21][%mdl 4] outshines the older 7.h4.} Nc6 {[%emt 0:01:27]} 8. Be3 {[%emt 0:00:51]} d5 {[%emt 0:03:49] B81: Sicilian Scheveningen: Keres Attack.} 9. exd5 {[%emt 0:01:28]} Nxd5 {[%emt 0:04:00]} 10. Nxd5 {[%emt 0:02:22]} Qxd5 {[%emt 0:05:50] White is slightly better.} 11. Bg2 {[%emt 0:04:20]} Qc4 {[%emt 0:08:10]} (11... Qa5+ $14 12. c3 Ne5) 12. Nxc6 $16 {[%emt 0:07:17]} bxc6 {[%emt 0:00:13]} 13. Qd4 {[%emt 0:02:03]} (13. Qd2 $142) 13... Qxd4 {[%emt 0:05:31]} 14. Bxd4 {[%emt 0:00:08]} Bd7 {[%emt 0:03:31]} 15. O-O-O $36 {[%emt 0:02:32][%mdl 2048] Keeping Black busy.} f6 $146 {[%emt 0:03:24]} ({Predecessor:} 15... Rc8 16. f4 c5 17. Bc3 Rg8 18. Rd2 Be7 19. Rgd1 Bb5 20. Ba5 c4 21. Re1 Bd8 22. Bxd8 Rxd8 {1-0 Rogos,J (2128)-Straka,J SVK-chT2C 0809 2008 (8.6)}) 16. Rge1 {[%emt 0:09:20][%cal Oe1e6]} h5 {[%emt 0:25:07] [#]} 17. g5 $1 {[%emt 0:13:49][%mdl 512] White has more active pieces.} Be7 {[%emt 0:07:55]} (17... fxg5 18. Be4) 18. g6 {[%emt 0:12:05]} ({Better is} 18. gxf6 gxf6 19. Bh3) 18... a5 {[%emt 0:05:59]} ({Black should play} 18... Bd6) 19. Bh3 {[%emt 0:01:40]} (19. Rxe6 $142 Bxe6 20. Bxc6+ Kf8 21. Bxa8) 19... f5 $2 {[%emt 0:03:23] [#] Black cannot hold the game after this.} (19... c5 $16 20. Be3 Ra6) 20. Bxf5 $1 $18 {[%emt 0:01:32][%mdl 512]} Bg5+ {[%emt 0:04:00]} (20... exf5 $2 21. Bc5 (21. Bxg7 Rg8 $18) 21... O-O-O 22. Rxe7 $18 (22. Bxe7 Rde8 $18)) (20... O-O 21. Bh3) 21. Kb1 {[%emt 0:01:27]} O-O-O {[%emt 0:00:27]} 22. Be4 {[%emt 0:01:53]} ({But not} 22. Bxe6 Bxe6 23. Rxe6 Bf6 $18) 22... Bf4 $2 {[%emt 0:02:15]} (22... Be8 {keeps fighting.} 23. Rd3 (23. Bxg7 Rg8 $18) 23... Bh4 24. Bxg7 Rg8) 23. Bxg7 {[%emt 0:00:52] White is clearly winning.} Rhg8 {[%emt 0:00:15]} 24. Bc3 {[%emt 0:00:41]} Bc7 {[%emt 0:00:14]} 25. g7 {[%emt 0:01:38]} e5 {[%emt 0:03:41]} 26. Rg1 {[%emt 0:00:11]} Bg4 {[%emt 0:01:38]} 27. Rxd8+ {[%emt 0:00:17]} Rxd8 {[%emt 0:00:13]} 28. Bh7 {[%emt 0:01:01]} Rh8 {Weighted Error Value: White=0.20 (precise) /Black=0.64  Loses game:     	---       	Black=1      Mistake:       	White=3     	Black=3      Inaccurate:     	White=2     	Black=4      OK:         	White=9     	Black=2      Best:        	White=1     	Black=1} 1-0

[Event "FIDE WSTC Open 50 2025"]
[Site "Prague"]
[Date "2025.02.19"]
[Round "3.15"]
[White "Kuna, Ralf-Michael"]
[Black "Tikzhanov, Yerlan"]
[Result "1-0"]
[Annotator "TA"]
[ECO "C01"]
[WhiteElo "2072"]
[BlackElo "2323"]
[PlyCount "81"]
[EventDate "2025.02.17"]
[EventType "team-tourn"]
[EventCountry "CZE"]
[SourceTitle "playchess.com"]
[Source "ChessBase"]
[SourceQuality "1"]
[TimeControl "40/5400+30:1800+30"]

{[%evp 13,81,18,14,32,40,33,37,29,30,12,22,0,0,-8,0,0,0,0,2,-9,0,-3,-3,-4,7,0,27,23,32,16,17,15,83,9,61,75,181,197,196,198,193,198,167,147,246,251,243,236,229,224,306,310,310,306,321,321,293,291,289,287,356,350,347,348,972,963,1179,1110,955,955]} 1. e4 {[%emt 0:00:06]} e6 {[%emt 0:00:12]} 2. d4 {[%emt 0:00:13]} d5 {[%emt 0:00:06]} 3. exd5 {[%emt 0:00:39]} exd5 {[%emt 0:00:07]} 4. Nf3 {[%emt 0:00:14]} Nf6 {[%emt 0:00:09]} 5. Bd3 {[%emt 0:00:21]} Bd6 {[%emt 0:00:07]} 6. Qe2+ {[%emt 0:01:25]} Qe7 {[%emt 0:02:39]} 7. Qxe7+ {[%emt 0:00:30]} Kxe7 {[%emt 0:00:10] 7...Kxe7 is setting a new trend.} 8. O-O {[%emt 0:00:39] C01: French: Exchange Variation.} Re8 {[%emt 0:00:25]} 9. Nc3 {[%emt 0:02:53][%cal Bb1c3,Bc3d1,Bd1e3][%mdl 32]} c6 {[%emt 0:02:05]} 10. Bg5 {[%emt 0:02:32] White is slightly better.} (10. Re1+ Kf8 11. Rxe8+ Kxe8 12. Ne5) 10... h6 {[%emt 0:00:56]} 11. Rfe1+ {[%emt 0:06:03]} Be6 {[%emt 0:00:24]} 12. Bh4 {[%emt 0:01:20]} Nbd7 {[%emt 0:00:49]} 13. Nd1 $146 {[%emt 0:04:39]} ({Predecessor:} 13. Ne5 g5 14. Bg3 Nh5 15. Nxd7 Kxd7 16. Bxd6 Kxd6 17. g3 Ng7 18. Re5 f6 19. Re3 {0-1 Harvey,M (2486)-Toropov,P (2308) Titled Tuesday intern op 23rd Jul Late blitz 2024 (7)}) 13... g5 {[%emt 0:12:19]} (13... a5 {simplifies} 14. a4 Kf8 15. Bg3 Bxg3 16. hxg3 g6) 14. Bg3 {[%emt 0:05:08]} Nh5 {[%emt 0:02:15]} 15. Ne3 {[%emt 0:02:15] [#]} Nxg3 {[%emt 0:00:48]} 16. hxg3 {[%emt 0:00:12]} Kf6 {[%emt 0:00:34] Repels Nf5} 17. g4 {[%emt 0:01:22]} Bf4 {[%emt 0:01:10]} 18. Nh2 $1 {[%emt 0:02:16]} Rh8 {[%emt 0:04:46]} 19. g3 {[%emt 0:02:49]} Bc7 {[%emt 0:00:28]} 20. Kg2 {[%emt 0:04:40]} c5 {[%emt 0:02:50]} 21. c3 {[%emt 0:03:01]} cxd4 {[%emt 0:01:27]} 22. cxd4 {[%emt 0:00:01]} Bb6 {[%emt 0:00:13] [#]} (22... Rad8 $11 {remains equal.}) 23. Nf3 {[%emt 0:02:10]} (23. f4 $1 $16) 23... h5 {[%emt 0:00:54]} (23... Nb8 $11) 24. Bf5 $1 $14 {[%emt 0:00:44] White is more active.} Nb8 {[%emt 0:04:39]} (24... hxg4 $16 25. Bxg4 Rh7) 25. Bxe6 $18 {[%emt 0:02:52]} fxe6 {[%emt 0:01:35]} 26. gxh5 {[%emt 0:02:25]} Rxh5 {[%emt 0:01:47]} 27. Ng4+ {[%emt 0:01:15] A dynamic duo of knights.} Ke7 {[%emt 0:00:34]} 28. Re2 {[%emt 0:09:40]} Nc6 {[%emt 0:06:54]} (28... Na6 $16 29. Re5 Bc7) 29. Rae1 {[%emt 0:00:42]} Nxd4 {[%emt 0:02:08]} 30. Nxd4 {[%emt 0:01:21]} Bxd4 {[%emt 0:00:07]} 31. Rxe6+ {[%emt 0:00:04]} Kd7 {[%emt 0:00:11]} 32. Re7+ {[%emt 0:02:55]} Kc6 {[%emt 0:00:38]} 33. R1e6+ {[%emt 0:00:19]} Kb5 {[%emt 0:00:19]} 34. Rxb7+ {[%emt 0:00:44]} Bb6 {[%emt 0:00:10]} 35. Rd7 {[%emt 0:05:33]} d4 {[%emt 0:00:59]} 36. Rd5+ {[%emt 0:10:06]} Kc4 {[%emt 0:01:51]} 37. Red6 {[%emt 0:00:34] Intending Ne5+ and mate.} Kd3 {[%emt 0:00:21]} 38. a4 {[%emt 0:01:18][%cal Ba2a4,Ba4a5][%mdl 32] a5 is the strong threat.} Re8 $2 {[%emt 0:04:45]} (38... Rc8 39. b4 (39. a5 Bc5 $18) 39... Kc3) 39. Nf6 {[%emt 0:01:04][%csl LRe8,LRh5] White is clearly winning.} Rhh8 {[%emt 0:01:29]} 40. Nxe8 {[%emt 0:00:18]} Rxe8 {[%emt 0:00:06]} 41. a5 {[%emt 0:30:08] Weighted Error Value: White=0.07 (flawless) /Black=0.45  Mistake:       	White=1     	Black=5      Inaccurate:     	---       	Black=2      OK:         	White=10    	Black=13     Best:        	White=6     	Black=1      Strong:       	White=2     	---} 1-0